[Event "VII Open Internacional Quart de Poblet"]
[Site "Quart de Poblet, Spain"]
[Date "2019.08.06"]
[Round "2.3"]
[White "Sanleon Pravisano, Nieves"]
[Black "Gavarrete, Nahun"]
[Result "0-1"]
[TimeControl "90m +30s por jugada"]
[WhiteFideId "32088590"]
[BlackFideId "8400709"]
[WhiteElo "1995"]
[BlackElo "2349"]

1. d4 {[%clk 01:30:58]} {[%emt 00:00:10]} Nf6 {[%clk 01:25:30]} {[%emt
00:05:23]} 2. c4 {[%clk 01:31:17]} {[%emt 00:00:41]} g6 {[%clk 01:25:52]}
{[%emt 00:00:04]} 3. Nc3 {[%clk 01:31:41]} Bg7 {[%clk 01:26:11]} 4. e4 {[%clk
01:32:03]} {[%emt 00:00:04]} O-O {[%clk 01:26:34]} {[%emt 00:00:08]} 5. Nf3
{[%clk 01:32:13]} {[%emt 00:00:13]} d6 {[%clk 01:26:58]} {[%emt 00:00:38]} 6.
Be2 {[%clk 01:32:05]} {[%emt 00:00:07]} e5 {[%clk 01:27:21]} {[%emt 00:00:13]}
7. O-O {[%clk 01:31:46]} {[%emt 00:00:42]} Nc6 {[%clk 01:27:48]} {[%emt
00:00:12]} 8. d5 {[%clk 01:32:09]} {[%emt 00:00:03]} Ne7 {[%clk 01:28:12]}
{[%emt 00:00:05]} 9. Ne1 {[%clk 01:32:29]} {[%emt 00:00:17]} Nd7 {[%clk
01:28:34]} {[%emt 00:00:03]} 10. Be3 {[%clk 01:32:52]} {[%emt 00:00:05]} f5
{[%clk 01:28:58]} {[%emt 00:00:07]} 11. f3 {[%clk 01:33:14]} {[%emt 00:00:08]}
f4 {[%clk 01:29:22]} {[%emt 00:00:07]} 12. Bf2 {[%clk 01:33:41]} {[%emt
00:00:03]} g5 {[%clk 01:29:45]} {[%emt 00:00:05]} 13. g4 {[%clk 01:34:07]}
{[%emt 00:00:04]} h5 {[%clk 01:29:22]} {[%emt 00:00:52]} 14. h3 {[%clk
01:31:53]} {[%emt 00:02:42]} Rf6 {[%clk 01:24:00]} {[%emt 00:05:53]} 15. a4
{[%clk 01:25:49]} {[%emt 00:06:36]} Rh6 {[%clk 01:24:21]} {[%emt 00:00:09]} 16.
a5 {[%clk 01:24:25]} {[%emt 00:01:53]} hxg4 {[%clk 01:23:06]} {[%emt 00:01:44]}
17. hxg4 {[%clk 01:24:47]} {[%emt 00:00:10]} Kf7 {[%clk 01:23:09]} {[%emt
00:00:49]} 18. Ng2 {[%clk 01:20:22]} {[%emt 00:04:33]} Qh8 {[%clk 01:22:49]}
{[%emt 00:00:51]} 19. Be1 {[%clk 01:19:40]} {[%emt 00:01:12]} Rh2 {[%clk
01:20:36]} {[%emt 00:02:40]} 20. Nh4 {[%clk 01:11:35]} {[%emt 00:08:35]} Rxh4
{[%clk 01:19:16]} {[%emt 00:01:51]} 21. Bxh4 {[%clk 01:12:03]} {[%emt
00:00:21]} Qxh4 {[%clk 01:19:29]} {[%emt 00:00:08]} 22. Rf2 {[%clk 00:57:54]}
{[%emt 00:14:29]} Qh8 {[%clk 01:17:06]} {[%emt 00:02:54]} 23. Rh2 {[%clk
00:57:55]} {[%emt 00:00:31]} Qd8 {[%clk 01:17:23]} {[%emt 00:00:13]} 24. b4
{[%clk 00:52:26]} {[%emt 00:05:55]} Ng6 {[%clk 01:17:44]} {[%emt 00:00:31]} 25.
Na4 {[%clk 00:51:49]} {[%emt 00:00:45]} Nh4 {[%clk 01:17:06]} {[%emt 00:01:11]}
26. c5 {[%clk 00:50:39]} {[%emt 00:01:37]} dxc5 {[%clk 01:14:12]} {[%emt
00:03:29]} 27. bxc5 {[%clk 00:50:40]} {[%emt 00:00:25]} Bf8 {[%clk 01:14:34]}
{[%emt 00:00:26]} 28. Qc2 {[%clk 00:37:38]} {[%emt 00:13:13]} b6 {[%clk
01:09:26]} {[%emt 00:05:49]} 29. cxb6 {[%clk 00:30:59]} {[%emt 00:07:24]} axb6
{[%clk 01:09:30]} {[%emt 00:00:13]} 30. axb6 {[%clk 00:23:58]} {[%emt
00:07:41]} Nxb6 {[%clk 01:09:46]} {[%emt 00:00:26]} 31. Ra2 {[%clk 00:23:27]}
{[%emt 00:00:27]} Rxa4 {[%clk 01:06:54]} {[%emt 00:03:21]} 32. Rxa4 {[%clk
00:23:48]} {[%emt 00:00:41]} Nxa4 {[%clk 01:07:18]} 33. Qxa4 {[%clk 00:24:10]}
{[%emt 00:00:08]} Qd6 {[%clk 01:07:37]} 34. Qc4 {[%clk 00:17:18]} {[%emt
00:07:07]} Qb6+ {[%clk 01:01:36]} {[%emt 00:06:31]} 35. Kf1 {[%clk 00:16:54]}
{[%emt 00:00:53]} Bd6 {[%clk 01:01:23]} {[%emt 00:00:53]} 36. Qc3 {[%clk
00:13:33]} {[%emt 00:04:17]} Bd7 {[%clk 01:00:13]} {[%emt 00:01:07]} 37. Bc4
{[%clk 00:05:48]} {[%emt 00:08:14]} Qb1+ {[%clk 00:57:05]} {[%emt 00:04:29]} 38.
Ke2 {[%clk 00:05:42]} Ba4 {[%clk 00:53:03]} {[%emt 00:04:17]} 39. Qd2 {[%clk
00:03:19]} {[%emt 00:02:58]} Kf6 {[%clk 00:49:18]} {[%emt 00:04:07]} 40. Bd3
{[%clk 00:01:25]} {[%emt 00:02:25]} Qg1 {[%clk 00:49:02]} {[%emt 00:00:45]} 41.
Rf2 {[%clk 00:01:30]} {[%emt 00:00:39]} Bb4 {[%clk 00:48:28]} {[%emt 00:01:05]}
0-1

[Event "VII Open Internacional Quart de Poblet"]
[Site "Quart de Poblet, Spain"]
[Date "2019.08.06"]
[Round "2.4"]
[White "Castella Garcia, Fausto"]
[Black "Martinez Lopez, Jaume"]
[Result "1-0"]
[TimeControl "90m +30s por jugada"]
[WhiteFideId "3501922"]
[BlackFideId "2211254"]
[WhiteElo "2315"]
[BlackElo "1982"]

1. e4 {[%clk 01:03:28]} {[%emt 00:27:30]} c6 {[%clk 01:30:33]} {[%emt
00:00:41]} 2. Nf3 {[%clk 01:03:09]} {[%emt 00:00:36]} d5 {[%clk 01:30:55]}
{[%emt 00:00:09]} 3. Nc3 {[%clk 01:03:34]} {[%emt 00:00:05]} Nf6 {[%clk
01:31:04]} {[%emt 00:00:18]} 4. e5 {[%clk 01:03:54]} {[%emt 00:00:11]} Ne4
{[%clk 01:31:14]} {[%emt 00:00:19]} 5. Qe2 {[%clk 01:00:28]} {[%emt 00:03:57]}
Nxc3 {[%clk 01:27:23]} {[%emt 00:04:20]} 6. dxc3 {[%clk 01:00:34]} {[%emt
00:00:33]} Qb6 {[%clk 01:12:35]} {[%emt 00:15:09]} 7. g3 {[%clk 00:59:50]}
{[%emt 00:01:15]} e6 {[%clk 01:04:23]} {[%emt 00:08:59]} 8. h4 {[%clk
00:57:21]} {[%emt 00:02:42]} c5 {[%clk 01:03:04]} {[%emt 00:01:49]} 9. a4
{[%clk 00:52:43]} {[%emt 00:05:08]} Bd7 {[%clk 01:02:50]} {[%emt 00:00:44]} 10.
Qd2 {[%clk 00:43:27]} {[%emt 00:09:45]} Be7 {[%clk 00:42:27]} {[%emt 00:20:53]}
11. Qf4 {[%clk 00:36:15]} {[%emt 00:07:46]} Nc6 {[%clk 00:36:37]} {[%emt
00:06:16]} 12. Qg4 {[%clk 00:16:56]} {[%emt 00:19:48]} Rg8 {[%clk 00:36:25]}
{[%emt 00:00:45]} 13. Bd3 {[%clk 00:15:32]} {[%emt 00:01:54]} g6 {[%clk
00:25:57]} {[%emt 00:10:59]} 14. b3 {[%clk 00:15:31]} {[%emt 00:00:28]} f5
{[%clk 00:26:14]} {[%emt 00:00:31]} 15. Qf4 {[%clk 00:13:41]} {[%emt 00:02:12]}
O-O-O {[%clk 00:24:21]} {[%emt 00:02:12]} 16. Qh6 {[%clk 00:10:57]} {[%emt
00:03:15]} c4 {[%clk 00:20:19]} {[%emt 00:04:36]} 17. Be2 {[%clk 00:09:09]}
{[%emt 00:02:13]} cxb3 {[%clk 00:16:45]} {[%emt 00:04:04]} 18. cxb3 {[%clk
00:09:28]} {[%emt 00:00:31]} d4 {[%clk 00:11:36]} {[%emt 00:05:19]} 19. O-O
{[%clk 00:05:53]} {[%emt 00:04:07]} dxc3 {[%clk 00:11:27]} {[%emt 00:00:37]} 20.
Be3 {[%clk 00:06:15]} {[%emt 00:00:37]} Bc5 {[%clk 00:11:32]} 21. Bxc5 {[%clk
00:06:39]} {[%emt 00:00:05]} Qxc5 {[%clk 00:11:59]} {[%emt 00:00:04]} 22. Qf4
{[%clk 00:05:18]} {[%emt 00:01:46]} Kb8 {[%clk 00:07:33]} {[%emt 00:04:57]} 23.
Rac1 {[%clk 00:04:59]} {[%emt 00:00:49]} h6 {[%clk 00:05:19]} {[%emt 00:02:46]}
24. Qxh6 {[%clk 00:03:04]} {[%emt 00:02:23]} Nd4 {[%clk 00:05:42]} {[%emt
00:00:14]} 25. Nxd4 {[%clk 00:02:14]} {[%emt 00:01:12]} Qxd4 {[%clk 00:06:10]}
{[%emt 00:00:32]} 26. Qe3 {[%clk 00:01:35]} {[%emt 00:00:40]} Qxe3 {[%clk
00:05:58]} {[%emt 00:00:43]} 27. fxe3 {[%clk 00:02:03]} {[%emt 00:00:04]} Bc6
{[%clk 00:05:25]} {[%emt 00:00:59]} 28. Rxc3 {[%clk 00:02:13]} {[%emt
00:00:20]} g5 {[%clk 00:05:51]} {[%emt 00:00:33]} 29. hxg5 {[%clk 00:00:52]}
{[%emt 00:01:22]} Rxg5 {[%clk 00:06:15]} {[%emt 00:00:08]} 30. Kf2 {[%clk
00:01:09]} {[%emt 00:00:11]} Rh8 {[%clk 00:03:59]} {[%emt 00:03:25]} 31. Rg1
{[%clk 00:01:28]} Rh2+ {[%clk 00:02:09]} {[%emt 00:01:52]} 32. Ke1 {[%clk
00:01:57]} {[%emt 00:00:10]} Rh3 {[%clk 00:02:08]} {[%emt 00:00:23]} 33. Bc4
{[%clk 00:01:45]} {[%emt 00:00:44]} Rg6 {[%clk 00:02:34]} {[%emt 00:00:03]} 34.
a5 {[%clk 00:01:38]} {[%emt 00:00:35]} Kc7 {[%clk 00:02:14]} {[%emt 00:00:50]}
35. b4 {[%clk 00:01:52]} {[%emt 00:00:19]} Kd7 {[%clk 00:01:01]} {[%emt
00:01:43]} 36. Rd3+ {[%clk 00:02:01]} {[%emt 00:00:27]} Ke7 {[%clk 00:01:19]}
{[%emt 00:00:19]} 37. Rd6 {[%clk 00:01:49]} {[%emt 00:00:26]} a6 {[%clk
00:01:00]} {[%emt 00:00:49]} 38. Bxa6 {[%clk 00:01:38]} {[%emt 00:00:41]} Bd5
{[%clk 00:01:18]} {[%emt 00:00:14]} 39. Bf1 {[%clk 00:00:51]} {[%emt 00:01:15]}
Rhxg3 {[%clk 00:01:40]} {[%emt 00:00:22]} 40. Rxg3 {[%clk 00:01:16]} Rxg3
{[%clk 00:02:09]} 41. Kf2 {[%clk 00:01:27]} {[%emt 00:00:34]} Rg4 {[%clk
00:02:32]} {[%emt 00:00:03]} 42. Rb6 {[%clk 00:01:08]} {[%emt 00:00:29]} Kd7
{[%clk 00:02:14]} {[%emt 00:00:57]} 43. Be2 {[%clk 00:00:58]} {[%emt 00:00:33]}
Rg2+ {[%clk 00:01:02]} {[%emt 00:01:41]} 44. Kf1 {[%clk 00:01:26]} {[%emt
00:00:26]} Rg3 {[%clk 00:01:19]} {[%emt 00:00:13]} 45. Kf2 {[%clk 00:01:36]}
Rg2+ {[%clk 00:01:45]} {[%emt 00:00:12]} 46. Ke1 {[%clk 00:01:16]} {[%emt
00:00:44]} Kc7 {[%clk 00:01:48]} {[%emt 00:00:22]} 47. Rd6 {[%clk 00:01:11]}
{[%emt 00:00:34]} Rh2 {[%clk 00:01:54]} {[%emt 00:00:26]} 48. b5 {[%clk
00:00:55]} {[%emt 00:00:50]} Rh4 {[%clk 00:01:56]} {[%emt 00:00:22]} 49. b6+
{[%clk 00:01:04]} {[%emt 00:00:23]} Kc8 {[%clk 00:02:25]} {[%emt 00:00:03]} 50.
a6 {[%clk 00:01:10]} {[%emt 00:00:21]} Ra4 {[%clk 00:02:16]} {[%emt 00:00:41]}
51. a7 {[%clk 00:00:57]} {[%emt 00:00:40]} 1-0

[Event "VII Open Internacional Quart de Poblet"]
[Site "Quart de Poblet, Spain"]
[Date "2019.08.06"]
[Round "2.5"]
[White "Gutierrez Marco, Dario"]
[Black "Chernikov, Vladimir"]
[Result "0-1"]
[TimeControl "90m +30s por jugada"]
[WhiteFideId "24529125"]
[BlackFideId "14112914"]
[WhiteElo "1952"]
[BlackElo "2315"]

1. e4 {[%clk 01:30:56]} {[%emt 00:00:06]} g6 {[%clk 01:30:41]} {[%emt
00:00:18]} 2. d4 {[%clk 01:31:10]} {[%emt 00:00:20]} Bg7 {[%clk 01:31:08]} 3.
Nc3 {[%clk 01:31:28]} {[%emt 00:00:13]} d6 {[%clk 01:31:37]} {[%emt 00:00:03]}
4. f4 {[%clk 01:31:45]} {[%emt 00:00:11]} Nc6 {[%clk 01:31:55]} {[%emt
00:00:09]} 5. Nf3 {[%clk 01:32:04]} {[%emt 00:00:13]} Bg4 {[%clk 01:31:59]}
{[%emt 00:00:27]} 6. Be3 {[%clk 01:32:26]} {[%emt 00:00:11]} e5 {[%clk
01:29:26]} {[%emt 00:02:58]} 7. Bb5 {[%clk 01:32:48]} {[%emt 00:00:09]} Bxf3
{[%clk 01:25:48]} {[%emt 00:04:06]} 8. gxf3 {[%clk 01:31:56]} {[%emt 00:01:22]}
exd4 {[%clk 01:26:01]} {[%emt 00:00:42]} 9. Bxd4 {[%clk 01:24:22]} {[%emt
00:07:40]} Qh4+ {[%clk 01:23:38]} {[%emt 00:02:53]} 10. Ke2 {[%clk 01:21:47]}
{[%emt 00:03:04]} Kf8 {[%clk 01:13:57]} {[%emt 00:10:11]} 11. Bxg7+ {[%clk
01:13:08]} {[%emt 00:09:11]} Kxg7 {[%clk 01:14:25]} {[%emt 00:00:03]} 12. Qd2
{[%clk 01:12:37]} {[%emt 00:00:58]} Nf6 {[%clk 01:10:42]} {[%emt 00:04:13]} 13.
Rae1 {[%clk 01:06:11]} {[%emt 00:06:59]} Qh5 {[%clk 01:05:37]} {[%emt
00:05:51]} 14. Kf2 {[%clk 00:52:29]} {[%emt 00:13:57]} Qh4+ {[%clk 00:54:48]}
{[%emt 00:11:30]} 15. Ke2 {[%clk 00:43:04]} {[%emt 00:09:43]} Qh5 {[%clk
00:53:52]} {[%emt 00:01:27]} 16. Kf2 {[%clk 00:41:39]} {[%emt 00:01:56]} Nd8
{[%clk 00:53:53]} {[%emt 00:00:38]} 17. h4 {[%clk 00:35:36]} {[%emt 00:06:20]}
Qc5+ {[%clk 00:52:34]} {[%emt 00:02:18]} 18. Qe3 {[%clk 00:24:46]} {[%emt
00:11:18]} Ne6 {[%clk 00:52:22]} {[%emt 00:00:15]} 19. Qxc5 {[%clk 00:23:03]}
{[%emt 00:02:32]} Nxc5 {[%clk 00:49:11]} {[%emt 00:03:22]} 20. e5 {[%clk
00:18:54]} {[%emt 00:04:39]} Nh5 {[%clk 00:48:25]} {[%emt 00:01:17]} 21. exd6
{[%clk 00:16:55]} {[%emt 00:02:52]} c6 {[%clk 00:46:04]} {[%emt 00:02:26]} 22.
Bc4 {[%clk 00:15:26]} {[%emt 00:02:02]} b5 {[%clk 00:45:34]} {[%emt 00:01:01]}
23. Bb3 {[%clk 00:12:27]} {[%emt 00:03:25]} Rad8 {[%clk 00:42:42]} {[%emt
00:03:22]} 24. Rd1 {[%clk 00:07:41]} {[%emt 00:05:16]} Nxf4 {[%clk 00:41:07]}
{[%emt 00:02:03]} 25. Rhe1 {[%clk 00:07:02]} {[%emt 00:01:19]} Rd7 {[%clk
00:41:19]} {[%emt 00:00:10]} 26. Ne4 {[%clk 00:06:09]} {[%emt 00:01:26]} Nxb3
{[%clk 00:39:59]} {[%emt 00:01:47]} 27. axb3 {[%clk 00:06:27]} {[%emt
00:00:12]} Rhd8 {[%clk 00:40:15]} {[%emt 00:00:15]} 28. c4 {[%clk 00:05:21]}
{[%emt 00:01:36]} f5 {[%clk 00:38:52]} {[%emt 00:02:06]} 29. Ng5 {[%clk
00:05:25]} {[%emt 00:00:18]} h6 {[%clk 00:35:23]} {[%emt 00:03:53]} 30. Ne6+
{[%clk 00:04:18]} {[%emt 00:01:38]} Nxe6 {[%clk 00:35:51]} {[%emt 00:00:09]} 31.
Rxe6 {[%clk 00:04:43]} {[%emt 00:00:04]} Kf7 {[%clk 00:36:11]} {[%emt
00:00:06]} 32. Re5 {[%clk 00:03:30]} {[%emt 00:01:40]} bxc4 {[%clk 00:33:43]}
{[%emt 00:02:58]} 33. bxc4 {[%clk 00:03:42]} {[%emt 00:00:43]} Rxd6 {[%clk
00:34:08]} 34. Rxd6 {[%clk 00:03:43]} {[%emt 00:00:09]} Rxd6 {[%clk 00:34:37]}
{[%emt 00:00:29]} 35. Ra5 {[%clk 00:03:45]} {[%emt 00:00:07]} Rd7 {[%clk
00:32:52]} {[%emt 00:02:08]} 36. Rc5 {[%clk 00:03:54]} {[%emt 00:00:22]} Rc7
{[%clk 00:31:14]} {[%emt 00:02:08]} 37. b4 {[%clk 00:03:19]} {[%emt 00:01:05]}
Ke6 {[%clk 00:31:30]} {[%emt 00:00:13]} 38. Ke3 {[%clk 00:02:58]} {[%emt
00:00:58]} Kd6 {[%clk 00:28:13]} {[%emt 00:03:41]} 39. Ra5 {[%clk 00:03:11]}
{[%emt 00:00:20]} Rb7 {[%clk 00:28:09]} {[%emt 00:00:31]} 40. Ra4 {[%clk
00:03:28]} {[%emt 00:00:41]} g5 {[%clk 00:27:10]} {[%emt 00:01:20]} 41. hxg5
{[%clk 00:03:52]} hxg5 {[%clk 00:27:37]} 42. Kf2 {[%clk 00:02:12]} {[%emt
00:02:00]} Ke5 {[%clk 00:27:25]} {[%emt 00:00:59]} 43. Kg3 {[%clk 00:02:20]}
{[%emt 00:00:07]} Kd4 {[%clk 00:26:35]} {[%emt 00:01:20]} 44. b5 {[%clk
00:02:32]} {[%emt 00:00:16]} cxb5 {[%clk 00:26:23]} {[%emt 00:00:41]} 45. cxb5+
{[%clk 00:03:00]} {[%emt 00:00:34]} Kc5 {[%clk 00:26:46]} 46. Ra5 {[%clk
00:03:03]} {[%emt 00:00:06]} Kb4 {[%clk 00:26:02]} {[%emt 00:01:11]} 47. Ra6
{[%clk 00:03:27]} {[%emt 00:00:17]} Kxb5 {[%clk 00:26:02]} {[%emt 00:00:25]} 48.
Rg6 {[%clk 00:03:50]} Kb4 {[%clk 00:22:09]} {[%emt 00:04:30]} 49. Rxg5 {[%clk
00:02:31]} {[%emt 00:01:43]} Rb5 {[%clk 00:22:38]} 50. Kf4 {[%clk 00:01:09]}
{[%emt 00:01:55]} a5 {[%clk 00:23:05]} {[%emt 00:00:03]} 51. Rg2 {[%clk
00:00:46]} {[%emt 00:00:50]} Kb3 {[%clk 00:23:06]} {[%emt 00:00:29]} 52. Re2
{[%clk 00:00:44]} {[%emt 00:00:46]} a4 {[%clk 00:22:50]} {[%emt 00:00:44]} 53.
Re3+ {[%clk 00:00:54]} {[%emt 00:00:23]} Kb4 {[%clk 00:22:25]} {[%emt
00:00:40]} 54. Rd3 {[%clk 00:00:45]} {[%emt 00:00:44]} a3 {[%clk 00:22:36]}
{[%emt 00:00:15]} 55. Rd4+ {[%clk 00:01:09]} {[%emt 00:00:43]} Kc3 {[%clk
00:22:51]} {[%emt 00:00:04]} 56. Rd1 {[%clk 00:00:35]} {[%emt 00:00:44]} a2
{[%clk 00:23:15]} {[%emt 00:00:19]} 0-1

[Event "VII Open Internacional Quart de Poblet"]
[Site "Quart de Poblet, Spain"]
[Date "2019.08.06"]
[Round "2.6"]
[White "Nieves Cabanes, Jose Manuel"]
[Black "Zaragoza Arenas, FranciscoJavier"]
[Result "1-0"]
[TimeControl "90m +30s por jugada"]
[WhiteFideId "22245715"]
[BlackFideId "2248840"]
[WhiteElo "2311"]
[BlackElo "1947"]

1. d4 {[%clk 01:30:56]} {[%emt 00:00:13]} d5 {[%clk 01:30:56]} 2. c4 {[%clk
01:31:22]} {[%emt 00:00:04]} e6 {[%clk 01:31:22]} {[%emt 00:00:06]} 3. Nc3
{[%clk 01:31:48]} Nf6 {[%clk 01:31:43]} {[%emt 00:00:06]} 4. Bg5 {[%clk
01:32:04]} {[%emt 00:00:13]} Nbd7 {[%clk 01:31:56]} {[%emt 00:00:41]} 5. cxd5
{[%clk 01:31:25]} {[%emt 00:00:46]} exd5 {[%clk 01:32:18]} {[%emt 00:00:24]} 6.
e3 {[%clk 01:31:51]} {[%emt 00:00:09]} Be7 {[%clk 01:31:31]} {[%emt 00:00:56]}
7. Bd3 {[%clk 01:31:57]} {[%emt 00:00:23]} O-O {[%clk 01:28:19]} {[%emt
00:03:53]} 8. Nf3 {[%clk 01:31:11]} {[%emt 00:01:06]} c6 {[%clk 01:28:30]}
{[%emt 00:00:20]} 9. Qc2 {[%clk 01:29:17]} {[%emt 00:02:23]} h6 {[%clk
01:28:50]} {[%emt 00:00:12]} 10. Bf4 {[%clk 01:25:11]} {[%emt 00:04:36]} Re8
{[%clk 01:25:31]} {[%emt 00:03:47]} 11. O-O {[%clk 01:24:02]} {[%emt 00:01:37]}
Nh5 {[%clk 01:20:29]} {[%emt 00:05:34]} 12. Nxd5 {[%clk 01:24:03]} {[%emt
00:00:28]} Nxf4 {[%clk 01:15:49]} {[%emt 00:05:10]} 13. Nxf4 {[%clk 01:21:58]}
{[%emt 00:02:35]} Nf6 {[%clk 01:14:41]} {[%emt 00:01:41]} 14. Bc4 {[%clk
01:16:05]} {[%emt 00:06:21]} Nd5 {[%clk 01:02:52]} {[%emt 00:12:27]} 15. Qb3
{[%clk 01:08:34]} {[%emt 00:07:56]} Nxf4 {[%clk 00:47:00]} {[%emt 00:16:41]} 16.
Bxf7+ {[%clk 01:08:40]} {[%emt 00:00:03]} Kh8 {[%clk 00:47:23]} {[%emt
00:00:05]} 17. exf4 {[%clk 01:08:36]} {[%emt 00:00:55]} Rf8 {[%clk 00:47:19]}
{[%emt 00:00:23]} 18. Ne5 {[%clk 01:08:23]} {[%emt 00:00:34]} Bf5 {[%clk
00:45:50]} {[%emt 00:01:59]} 19. Bg6 {[%clk 01:05:13]} {[%emt 00:03:55]} Qd6
{[%clk 00:35:52]} {[%emt 00:10:21]} 20. Bxf5 {[%clk 01:04:03]} {[%emt
00:01:37]} Rxf5 {[%clk 00:36:13]} {[%emt 00:00:05]} 21. Qxb7 {[%clk 01:03:44]}
{[%emt 00:00:47]} Re8 {[%clk 00:31:51]} {[%emt 00:04:54]} 22. Qxc6 {[%clk
01:03:02]} {[%emt 00:01:14]} Qxc6 {[%clk 00:22:51]} {[%emt 00:09:26]} 23. Nxc6
{[%clk 01:03:21]} {[%emt 00:00:12]} Bf6 {[%clk 00:21:58]} {[%emt 00:01:31]} 24.
Ne5 {[%clk 01:03:25]} {[%emt 00:00:18]} Kg8 {[%clk 00:21:33]} {[%emt 00:00:54]}
25. g3 {[%clk 01:03:32]} {[%emt 00:00:22]} Bd8 {[%clk 00:19:21]} {[%emt
00:02:47]} 26. Kg2 {[%clk 01:00:17]} {[%emt 00:03:43]} Bb6 {[%clk 00:19:18]}
{[%emt 00:00:43]} 27. Rad1 {[%clk 00:57:35]} {[%emt 00:03:01]} Rd8 {[%clk
00:17:44]} {[%emt 00:02:06]} 28. d5 {[%clk 00:56:35]} {[%emt 00:01:28]} g5
{[%clk 00:17:52]} {[%emt 00:00:22]} 29. d6 {[%clk 00:51:21]} {[%emt 00:05:43]}
gxf4 {[%clk 00:16:56]} {[%emt 00:01:27]} 30. Nc6 {[%clk 00:51:45]} {[%emt
00:00:37]} f3+ {[%clk 00:12:54]} {[%emt 00:04:01]} 31. Kg1 {[%clk 00:52:10]}
{[%emt 00:00:22]} Kf7 {[%clk 00:10:23]} {[%emt 00:02:43]} 32. Nxd8+ {[%clk
00:52:29]} {[%emt 00:00:12]} Bxd8 {[%clk 00:10:49]} {[%emt 00:00:22]} 33. Rfe1
{[%clk 00:52:40]} {[%emt 00:00:07]} Rc5 {[%clk 00:10:39]} {[%emt 00:00:37]} 34.
Re3 {[%clk 00:52:46]} {[%emt 00:00:24]} 1-0